Cogmind - Beta 10.1 @@@ ROGUE MODE // 2020.10.13 @ 20:45:29 // Winter2019/RPGLIKE Player: Hermelin Result: Destroyed by D-53 Grenadier with Mini Grenade Launcher Performance ------------- Evolutions (0) 0 Regions Visited (2) 400 Robots Destroyed (19) 95 Value Destroyed (424) 424 Prototype IDs (4) 80 Alien Tech Used (0) 0 Bonus (0) 0 TOTAL SCORE: 999 Bonus ------- None Cogmind --------- Core Integrity 0/600 Matter 274/300 Energy 100/100 System Corruption 0% Temperature Cool (0) Movement Hovering (80) Location -10/Mines Parts ------- > --- POWER (1) -------- Backup Power I > --- PROPULSION (1) --- Backup Propulsion I > --- UTILITY (2) ------ Improved Signal Interpreter Improved Terrain Scanner > --- WEAPON (1) ------- Heavy Assault Rifle > --- INVENTORY (2) ---- Utility Shielding EM Shotgun Peak State ------------ > --- POWER ------------ Backup Power I > --- PROPULSION ------- Backup Propulsion I > --- UTILITY ---------- Improved Signal Interpreter Improved Terrain Scanner > --- WEAPON ----------- Heavy Assault Rifle > --- INVENTORY -------- EM Shotgun [Rating: 8] Favorites ----------- Power Backup Power I Engine Backup Power I Propulsion Backup Propulsion I Treads Light Treads Hover Unit Backup Propulsion I Flight Unit Flight Unit Utility Improved Terrain Scanner Device Improved Terrain Scanner Processor Improved Signal Interpreter Protection Light Armor Plating Weapon Heavy Assault Rifle Energy Gun EM Pulse Gun Ballistic Gun Heavy Assault Rifle Build | -11 -10 -10 ------- Run | Scr Mat Min Slots Evolved 1 | 1 . . Power . | . . . Propulsion . | . . . Utility 1 | 1 . . Weapon . | . . . Parts Attached 11 | 5 5 1 Power 1 | 1 . . Engine 1 | 1 . . Core . | . . . Reactor . | . . . Propulsion 2 | 1 1 . Treads 1 | 1 . . Leg . | . . . Wheel . | . . . Hover . | . . . Flight 1 | . 1 . Utility 5 | 2 2 1 Device 2 | 1 1 . Storage . | . . . Processor 2 | 1 . 1 Hackware . | . . . Protection 1 | . 1 . Artifact . | . . . Weapon 3 | 1 2 . Energy Gun 2 | 1 1 . Energy Cannon . | . . . Ballistic Gun 1 | . 1 . Ballistic Cannon . | . . . Launcher . | . . . Special Weapon . | . . . Impact Weapon . | . . . Slashing Weapon . | . . . Piercing Weapon . | . . . Special Melee Weapon . | . . . Unidentified Prototypes . | . . . Parts Lost 2 | . 2 . Power . | . . . Propulsion 1 | . 1 . Utility 1 | . 1 . Weapon . | . . . Highest Loss Streak 1 | . 1 . Average Slot Usage (%) 75 | . 72 94 Engine 9 | . 7 20 Treads 4 | . 4 . Hover 7 | . 5 20 Flight 6 | . 6 . Device 18 | . 18 20 Processor 3 | . 2 14 Protection 6 | . 7 . Energy Gun 6 | . 7 . Ballistic Gun 13 | . 12 20 Naked Turns . | . . . Heaviest Build 7 | 6 7 5 Greatest Support 11 | 8 11 11 Greatest Overweight (x) . | . . . Average Overweight (x) . | . . . Largest Inventory Capacity 2 | 2 2 2 Average Capacity 1 | 1 2 2 Most Carried 2 | 1 2 2 Average Carried 1 | . 1 1 Final Capacity 2 | 2 2 2 Final Carried 2 | 1 2 2 Class Distribution -------------------- 100% | Mutant Dominant Class ---------------- Mutant | -10/Materials Mutant | -10/Mines Resources | -11 -10 -10 ----------- Run | Scr Mat Min Matter Collected 462 | 250 192 20 Remotely . | . . . Salvage Created 522 | 147 375 . Parts 34 | 8 23 3 Haulers Intercepted . | . . . Recyclers Shooed . | . . . Parts Field Recycled . | . . . Retrieved Matter . | . . . Parts Self-Destructed . | . . . Prevented . | . . . Kills | -11 -10 -10 ------- Run | Scr Mat Min Combat Hostiles Destroyed 14 | . 12 2 Guns 14 | . 12 2 Classes Destroyed 5 | 2 2 1 Tunneler 4 | 3 1 . Recycler 1 | 1 . . Swarmer 6 | . 6 . Grunt 7 | . 6 1 Demolisher 1 | . . 1 Best Kill Streak 7 | 2 7 2 Combat Bots Only 7 | . 7 2 Max Kills in Single Turn 1 | 1 1 1 Gunslinging . | . . . Exploded . | . . . Melee . | . . . Uniques/NPCs Destroyed . | . . . Combat | -11 -10 -10 -------- Run | Scr Mat Min Damage Taken 1142 | . 1086 56 Core 903 | . 851 52 Absorbed by Shields . | . . . Redirected to Core 499 | . 485 14 Core Remaining (%) 100 | 100 . . Volleys Fired 84 | 6 66 12 Largest 1 | 1 1 1 Hottest 45 | 40 45 23 Shots Fired 84 | 6 66 12 Gun 84 | 6 66 12 Cannon . | . . . Launcher . | . . . Special . | . . . Kinetic 62 | . 50 12 Thermal . | . . . Explosive . | . . . Electromagnetic 22 | 6 16 . Robot Hit Streak 10 | 6 10 10 Robot Miss Streak 6 | . 6 2 Penetration Max . | . . . Secondary Targets . | . . . Shots Hit Robots 68 | 6 53 9 Core Hits 31 | 5 23 3 Critical Hits . | . . . Critical Kills . | . . . Critical Parts Destroyed . | . . . Melee Attacks . | . . . Impact . | . . . Slashing . | . . . Piercing . | . . . Sneak Attacks . | . . . Combat Hostiles . | . . . Follow-up Attacks . | . . . Damage Inflicted 946 | 76 732 138 Guns 946 | 76 732 138 Cannons . | . . . Explosions . | . . . Melee . | . . . Ramming . | . . . Kinetic 751 | . 613 138 Thermal . | . . . Explosive . | . . . Electromagnetic 195 | 76 119 . Impact . | . . . Slashing . | . . . Piercing . | . . . Highest Corruption . | . . . Average Corruption . | . . . Corruption Purged . | . . . Overload Shots . | . . . Overflow Damage . | . . . Projectiles . | . . . Explosions . | . . . Melee . | . . . Knockbacks . | . . . Impact . | . . . Kinetic . | . . . Secondary . | . . . Self-Inflicted Damage . | . . . Shots . | . . . Rammed . | . . . Targets Rammed . | . . . Kicked . | . . . Crushed . | . . . Highest Temperature 25 | 20 25 . Average Temperature 12 | 20 11 . Received Heat Transfer 519 | . 495 24 Siege Activations . | . . . Robots Corrupted . | . . . Combat Hostiles . | . . . Parts Fried 1 | . 1 . Impact Corruptions . | . . . Robots Melted . | . . . Combat Hostiles . | . . . Parts Melted . | . . . Heat Transferred . | . . . Parts Sabotaged . | . . . Parts Stolen . | . . . Parts Stripped . | . . . Power Chain Reactions . | . . . Missiles Intercepted . | . . . Alert | -11 -10 -10 ------- Run | Scr Mat Min Peak Influence 318 | 20 318 113 Initial 63 | . 13 63 Average 142 | 8 171 74 Maximum Alert Level 1 | . 1 . Low Security (%) 63 | 100 53 100 Level 1 36 | . 46 . Level 2 . | . . . Level 3 . | . . . Level 4 . | . . . Level 5 . | . . . High Security . | . . . Max Security . | . . . Squads Dispatched 2 | . 2 . Investigation 1 | . 1 . Extermination . | . . . Reinforcement 1 | . 1 . Assault . | . . . Garrison . | . . . Intercept . | . . . Construction Impeded . | . . . Haulers Reinforced . | . . . Stealth | -11 -10 -10 --------- Run | Scr Mat Min Distress Signals 1 | . 1 . Communications Jammed . | . . . Distress Signals . | . . . Times Spotted 25 | . 18 7 Peak Tracking Total 6 | . 5 6 Tactical Retreats 3 | . 2 1 Traps | -11 -10 -10 ------- Run | Scr Mat Min Traps Triggered . | . . . Indirectly . | . . . Trap Hack Attempts . | . . . Triggered . | . . . Disarmed . | . . . Reprogrammed . | . . . Reused . | . . . Traps Extracted . | . . . Installed . | . . . Triggered . | . . . Machines | -11 -10 -10 ---------- Run | Scr Mat Min Machines Disabled . | . . . Max in Single Turn . | . . . Machines Sabotaged . | . . . Garrisons Compromised . | . . . Overloaded Fab Kills . | . . . Fab Network Shutdowns . | . . . Hacking | -11 -10 -10 --------- Run | Scr Mat Min Machines Accessed 9 | . 9 . Terminals 7 | . 7 . Fabricators . | . . . Repair Stations 1 | . 1 . Recycling Units 1 | . 1 . Scanalyzers . | . . . Garrison Access . | . . . Total Hacks 36 | . 36 . Successful 25 | . 25 . Failed 11 | . 11 . Catastrophic . | . . . Database Lockouts . | . . . Manual 16 | . 16 . Terminals 30 | . 30 . Fabricators . | . . . Repair Stations 4 | . 4 . Recycling Units 2 | . 2 . Scanalyzers . | . . . Garrison Access . | . . . Terminal Hacks 12 | . 12 . Robot Schematic 1 | . 1 . Robot Analysis 1 | . 1 . Prototype ID Bank 2 | . 2 . Level Access Points 1 | . 1 . Branch Access Points 1 | . 1 . Terminal Index 1 | . 1 . Locate Traps 2 | . 2 . Hauler Manifests 1 | . 1 . Zone Layout 2 | . 2 . Fabricator Hacks . | . . . Repair Station Hacks 3 | . 3 . Scan Component 1 | . 1 . Repair 1 | . 1 . Refit 1 | . 1 . Recycling Unit Hacks 1 | . 1 . Report Inventory 1 | . 1 . Scanalyzer . | . . . Garrison Access Hacks . | . . . Unauthorized Hacks 9 | . 9 . Terminals 8 | . 8 . Track 3 | . 3 . Assimilate 1 | . 1 . Botnet 2 | . 2 . Disrupt 1 | . 1 . Operators 1 | . 1 . Fabricators . | . . . Repair Stations . | . . . Recycling Units 1 | . 1 . Tunnel 1 | . 1 . Scanalyzers . | . . . Garrison Access . | . . . Data Cores Recovered . | . . . Used . | . . . Hacking Detections 8 | . 8 . Full Trace Events 1 | . 1 . Feedback Events . | . . . Feedback Blocked . | . . . Robot Schematics Acquired 1 | . 1 . Robots Built . | . . . Matter . | . . . Time . | . . . Total Robot Build Rating . | . . . Part Schematics Acquired . | . . . Parts Built . | . . . Matter . | . . . Time . | . . . Total Part Build Rating . | . . . Parts Repaired 1 | . 1 . Time 32 | . 32 . Parts Recycled . | . . . Recycled Matter . | . . . Retrieved Matter . | . . . Retrieved Components . | . . . Parts Scanalyzed . | . . . Part Schematics Acquired . | . . . Parts Damaged . | . . . Bothacking | -11 -10 -10 ------------ Run | Scr Mat Min Used RIF Installer . | . . . Robots Hacked . | . . . Non-combat . | . . . Combat . | . . . Robot Hacks Applied . | . . . Relay Couplers Released . | . . . Robots Rewired . | . . . Allies Hacked . | . . . Hacks Repelled . | . . . Allies | -11 -10 -10 -------- Run | Scr Mat Min Total Allies . | . . . Largest Group . | . . . Highest-Rated Group . | . . . Highest-Rated Ally . | . . . Total Orders . | . . . Ally Attacks . | . . . Total Damage . | . . . Kills . | . . . Allies Corrupted . | . . . Allies Melted . | . . . Intel | -11 -10 -10 ------- Run | Scr Mat Min Robot Analysis Total 1 | . 1 . Derelict Logs Recovered . | . . . Drone Launches . | . . . Drone Recoveries . | . . . Exploration | -11 -10 -10 ------------- Run | Scr Mat Min Turns Passed 592 | 65 458 69 Spaces Moved 490 | 39 397 54 Core 289 | 39 250 . Treads . | . . . Legs . | . . . Wheels . | . . . Hover 149 | . 95 54 Flight 52 | . 52 . Fastest Speed 40 | 50 40 80 Average Speed 58 | 50 55 80 Slowest Speed 80 | 50 80 80 Overloaded Moves . | . . . Propulsion Burnouts . | . . . Robots Hopped 1 | . 1 . Cave-ins Triggered . | . . . Exploration Rate (%) 33 | 3 72 26 Regions Visited 2 Branch Regions 1 Pre-discovered Areas 1 | . 1 . Known Exits Taken 1 | . 1 . Unknown Exits Taken 1 | 1 . . Scrap Searched 1 | . . 1 Spaces Dug . | . . . Terrain Destroyed . | . . . Melee . | . . . Projectile . | . . . AOE . | . . . Terrain Rammed . | . . . Walls Destroyed . | . . . Machines Disabled . | . . . Actions | -11 -10 -10 --------- Run | Scr Mat Min Total 709 | 75 566 68 Wait 105 | 25 80 . Move 486 | 38 394 54 Hop 1 | . 1 . Pick Up 4 | 1 2 1 Fast Attach 8 | 5 3 . Attach 1 | . . 1 Detach . | . . . Swap 2 | . 2 . Drop 5 | . 5 . Fire 84 | 6 66 12 Melee . | . . . Ram . | . . . Kick . | . . . Crush . | . . . Escape Stasis . | . . . Rewire . | . . . Trap . | . . . Miscellaneous 13 | . 13 . Route ------- -11/Scrapyard -10/Materials (discovered 4 exits: *Mat x3 / *Min) -10/Mines History --------- Turn | Location | Event 9 | -11/Scrapyard | Upgraded with Utility slot (x1) 9 | -11/Scrapyard | Discovered new exit (range 16) 66 | -11/Scrapyard | Entered Materials 73 | -10/Materials | Discovered new exit (range 16) 141 | -10/Materials | Discovered new exit (range 17) 141 | -10/Materials | Identified exit to Mines 252 | -10/Materials | Identified exit to Materials 267 | -10/Materials | Destroyed 7 combat bots 300 | -10/Materials | Build established: Mutant 322 | -10/Materials | Core integrity fell below 50% 346 | -10/Materials | Core integrity fell below 20% 405 | -10/Materials | Reached level 2 441 | -10/Materials | Repaired Imp. Terrain Scanner 524 | -10/Materials | Entered Mines 538 | -10/Mines | Met a Derelict bent on vengeance 562 | -10/Mines | Assembled infested the area 567 | -10/Mines | Assisted by a Guerilla fighting off Assembled 593 | -10/Mines | Destroyed by D-53 Grenadier with Mini Grenade Launcher Last Messages --------------- 00568_ G-47 Trooper knocked back. 00568_ HV Slug penetrates G-47 Trooper. 00572_ G-47 Trooper destroyed. 00575_ as-14830 destroyed. 00576_ as-42806 destroyed. 00577_ The unstable cave ceiling collapses. 00577_ Searching scrap... 00577_ Found Sml. Matter Pod. 00577_ Found Utility Shielding. 00577_ Found 20 Matter. 00578_ Acquired 20 matter. 00578_ D-53 Grenadier suffers critical hit. 00579_ Acquired Utility Shielding. 00580_ HV Slug penetrates D-53 Grenadier. 00580_ D-53 Grenadier suffers critical hit. 00585_ HV Slug penetrates D-53 Grenadier. 00585_ D-53 Grenadier suffers critical hit. 00586_ 3A-54E(h) destroyed. 00586_ D-53 Grenadier destroyed. 00588_ The unstable cave ceiling collapses. Map ----- +----------------------------------------------------+ | ?????????????????????????????????????????????????? | | ?????????????????????????????????????????????????? | | ?????????????????????????????????????????????????? | | ?????????????????????????????????????????????????? | | ?????????????????????????????????????????????????? | | ?????????????????????????????????????????????????? | | ?????????????????????????????????????????????????? | | ?????????????????????????????????????????????????? | | ?????????????????????????????????????????????????? | | ?????????????????????????????????????????????????? | | ????????????????????#??##??????#?#????#??????????? | | ??????????????????????????##?? ? ??????#?????????? | | ???????????????????##??####### # ##? ????????? | | ???????????????????###?# ;# ?????????? | | ??????????????#?? ? ??## ; ? ?? ??????? | | ????????????? ? ??????? # # ??????????? | | ???????????? ? ??? #?#?# !# #?????????? | | ?????????????????? ??#### % = ##?#??????? | | ????????????????? ???### * ???##?????? | | ?????????????## ??#??## * #??????#???? | | ???????????### ?#### d ##?#???????#? | | ??????????? ### % ####?#??????# | | ?????????????? #??#?#???????# | | ??????????#?#??#?# # ##?#??#??????? | | ?????????#???????## ! # #?###?#?#?????? | | ?????????????????#?# @ #########??????? | | ??????????????##??## ## ##??????? | | ???????????#????##?# ### ########### ##???#?#? | | ????????????##?#?#?# ##?# #?#??##?### #??###??? | | ??????????????#????## ##### ? ?????#?# #####?#?? | | ??????????????#?????##????####?# ###### # ##??? | | ????????????#??##??##???????#### ##?? | | ??????????????????????????????######### ##? | | ????????????????? ? ?????##??#?#????#?# ## | | ???????????? ???????#???#???#????##?#### ### | | ?????????????????????#??#??????????????####?## | | ??????????????????# ?#??#?#?????#?#?##???????# | | ????????????????????##?????####???#??##?#??#?## | | ???????????????????????##?### #####??#?#???#?## # | | ??????????????????#????????# ##??????##?????# # | | ??????????????????# ######## ##??#????##??## # | | ??????????????????# ####?????#??## # | | ?????????????????????### ###?####### # | | ???????????????????????# ##### #??# # | | ?????????????????????## ????## #??# # | | ??????????????????????????????## #### ####### | | ??????????????????????????#????## ## #?????# | | ????????????????????????????????## ##?#??? | | ?????????????????????????? #?????## #????? | | ??????????????????? ?? ???????????## | +----------------------------------------------------+ Best States ------------- Heat Dissipation 25 Energy Generation 10 Energy Capacity 125 Matter Stores 300 Matter Capacity 300 Sight Range 17 Terrain Scan Range 16 Terrain Scan Density 160 Armor Coverage 150 Evasion (%) 62 Recoil Reduction 1 Offensive Hacking 5 Defensive Hacking 5 Item Schematics ----------------- None Robot Schematics ------------------ M-13 Machinist | -10/Materials | Hacked Fabricated ------------ Nothing Alien Tech Used ----------------- None Achievements -------------- None Challenges ------------ None RPGLIKE | -11 -10 -10 --------- Run | Scr Mat Min Levels Raised 1 | . 1 . XP Earned 5415 | 3000 1665 750 XP Spent 1900 | 1900 . . Upgrades 8 | 8 . . Utility Slot 1 | 1 . . Mass Support 1 | 1 . . Inventory Capacity 2 | 2 . . Sight Range 1 | 1 . . Terrain Scan Density 1 | 1 . . Hack Attack % 1 | 1 . . Hack Defense % 1 | 1 . . Protomatter Created 118 | . 68 50 Integrity Restored 291 | . 291 . Core 291 | . 291 . Protomatter Decayed . | . . . Game ------ Seed EnhancedLongswordPerforator Manual? 0 Play Time 00:09:39 Cumulative 344.1 hours Start 2020.10.13 @ 20:36:44 End 2020.10.13 @ 20:45:29 Sessions 1 Manual Loads 0 Difficulty Rogue Special Mode Winter2019/RPGLIKE Game No. 136 Rogue 136 Adventurer 0 Explorer 0 Win Type - Total 4 Types 3/0/0/1/0/0/0/0/0 Lore% 87 Gallery% 92 Achievement% 73 Wizard Run 0 Options --------- ASCII 0 Keyboard 0 Movement Numpad Keybinds 0 Fullscreen 1 Font 18/SmallcapsGlow Map View 76x50 Tactical HUD 1 Map Filters NONE Filters NONE Steam 1 RUN: fa21b5fb-e680-4a33-a205-cc1f21422ea1